[Event "Snabb-SM för veteraner, 50+ 2019"]
[Site "Schackcentrum, Vegagatan 20, Gothenburg, Sweden"]
[Date "2019.10.06"]
[Round "7.8"]
[White "Hautajarvi, Jukka"]
[Black "Kirppo, Ronny"]
[Result "1/2-1/2"]
[TimeControl "15 minutes + 10 seconds per move from move one"]
[WhiteFideId "1716190"]
[BlackFideId "1724681"]
[WhiteElo "2145"]
[BlackElo "1877"]

1. b3 {[%clk 00:15:17]} {[%emt 00:00:02]} Nf6 {[%clk 00:15:13]} {[%emt
00:00:07]} 2. Bb2 {[%clk 00:15:24]} {[%emt 00:00:02]} g6 {[%clk 00:15:17]}
{[%emt 00:00:07]} 3. Nf3 {[%clk 00:15:29]} {[%emt 00:00:05]} Bg7 {[%clk
00:15:23]} {[%emt 00:00:04]} 4. c4 {[%clk 00:15:34]} {[%emt 00:00:05]} d6
{[%clk 00:15:27]} {[%emt 00:00:07]} 5. g3 {[%clk 00:15:40]} {[%emt 00:00:04]}
O-O {[%clk 00:15:29]} {[%emt 00:00:07]} 6. Bg2 {[%clk 00:15:48]} {[%emt
00:00:02]} e5 {[%clk 00:15:06]} {[%emt 00:00:34]} 7. d3 {[%clk 00:15:54]}
{[%emt 00:00:03]} c6 {[%clk 00:15:06]} {[%emt 00:00:11]} 8. O-O {[%clk
00:16:01]} {[%emt 00:00:03]} Bg4 {[%clk 00:13:46]} {[%emt 00:01:30]} 9. h3
{[%clk 00:15:55]} {[%emt 00:00:15]} Bxf3 {[%clk 00:13:26]} {[%emt 00:00:30]} 10.
Bxf3 {[%clk 00:16:03]} {[%emt 00:00:02]} Nbd7 {[%clk 00:13:23]} {[%emt
00:00:13]} 11. Nd2 {[%clk 00:16:03]} {[%emt 00:00:10]} Re8 {[%clk 00:13:29]}
{[%emt 00:00:04]} 12. Qc2 {[%clk 00:16:11]} {[%emt 00:00:02]} Nf8 {[%clk
00:13:36]} {[%emt 00:00:04]} 13. e3 {[%clk 00:16:05]} {[%emt 00:00:15]} Ne6
{[%clk 00:13:34]} {[%emt 00:00:12]} 14. Bg2 {[%clk 00:16:12]} {[%emt 00:00:03]}
Qd7 {[%clk 00:13:23]} {[%emt 00:00:21]} 15. Rad1 {[%clk 00:16:09]} {[%emt
00:00:12]} Nc7 {[%clk 00:12:37]} {[%emt 00:00:58]} 16. Nf3 {[%clk 00:15:41]}
{[%emt 00:00:36]} Rad8 {[%clk 00:12:43]} {[%emt 00:00:05]} 17. Bc3 {[%clk
00:13:48]} {[%emt 00:02:03]} Qe7 {[%clk 00:11:04]} {[%emt 00:01:48]} 18. Qb2
{[%clk 00:13:23]} {[%emt 00:00:36]} Nd7 {[%clk 00:08:29]} {[%emt 00:02:46]} 19.
Qc1 {[%clk 00:11:52]} {[%emt 00:01:57]} d5 {[%clk 00:07:04]} {[%emt 00:01:38]}
20. cxd5 {[%clk 00:12:00]} {[%emt 00:00:02]} Nxd5 {[%clk 00:07:11]} {[%emt
00:00:03]} 21. Bb2 {[%clk 00:12:04]} {[%emt 00:00:06]} Nc5 {[%clk 00:06:19]}
{[%emt 00:01:03]} 22. Ba3 {[%clk 00:11:59]} {[%emt 00:00:14]} Bf8 {[%clk
00:04:15]} {[%emt 00:02:14]} 23. d4 {[%clk 00:12:07]} {[%emt 00:00:02]} exd4
{[%clk 00:04:09]} {[%emt 00:00:17]} 24. exd4 {[%clk 00:12:15]} {[%emt
00:00:02]} Nxb3 {[%clk 00:04:17]} {[%emt 00:00:01]} 25. Bxe7 {[%clk 00:11:14]}
{[%emt 00:01:11]} Nxc1 {[%clk 00:04:26]} {[%emt 00:00:02]} 26. Bxd8 {[%clk
00:11:16]} {[%emt 00:00:07]} Ne2+ {[%clk 00:04:35]} {[%emt 00:00:02]} 27. Kh2
{[%clk 00:11:25]} {[%emt 00:00:02]} Rxd8 {[%clk 00:04:43]} {[%emt 00:00:01]} 28.
Rb1 {[%clk 00:10:47]} {[%emt 00:00:48]} b6 {[%clk 00:01:50]} {[%emt 00:03:04]}
29. a4 {[%clk 00:10:13]} {[%emt 00:00:43]} Ndc3 {[%clk 00:01:42]} {[%emt
00:00:15]} 30. Ra1 {[%clk 00:10:02]} {[%emt 00:00:23]} Nxd4 {[%clk 00:01:34]}
{[%emt 00:00:16]} 31. Nxd4 {[%clk 00:10:10]} Rxd4 {[%clk 00:01:42]} {[%emt
00:00:07]} 32. Bxc6 {[%clk 00:10:14]} {[%emt 00:00:06]} a5 {[%clk 00:01:21]}
{[%emt 00:00:31]} 33. Kg2 {[%clk 00:10:08]} {[%emt 00:00:15]} Bc5 {[%clk
00:01:22]} {[%emt 00:00:09]} 34. Rfc1 {[%clk 00:09:25]} {[%emt 00:00:53]} Ne4
{[%clk 00:00:36]} {[%emt 00:00:55]} 35. Rc2 {[%clk 00:09:10]} {[%emt 00:00:26]}
Nd6 {[%clk 00:00:37]} {[%emt 00:00:09]} 36. Rac1 {[%clk 00:08:44]} {[%emt
00:00:37]} Kg7 {[%clk 00:00:45]} {[%emt 00:00:02]} 37. h4 {[%clk 00:07:37]}
{[%emt 00:01:16]} h5 {[%clk 00:00:52]} {[%emt 00:00:03]} 38. f3 {[%clk
00:07:14]} {[%emt 00:00:33]} f6 {[%clk 00:01:01]} {[%emt 00:00:01]} 39. Kh3
{[%clk 00:07:23]} {[%emt 00:00:01]} g5 {[%clk 00:01:07]} {[%emt 00:00:04]} 40.
hxg5 {[%clk 00:07:21]} {[%emt 00:00:13]} fxg5 {[%clk 00:01:16]} 41. Rxc5 {[%clk
00:07:17]} {[%emt 00:00:13]} bxc5 {[%clk 00:01:21]} {[%emt 00:00:05]} 42. Rxc5
{[%clk 00:07:25]} {[%emt 00:00:02]} g4+ {[%clk 00:01:25]} {[%emt 00:00:07]} 43.
fxg4 {[%clk 00:06:33]} {[%emt 00:01:01]} hxg4+ {[%clk 00:01:34]} 44. Kg2 {[%clk
00:06:17]} {[%emt 00:00:26]} Rd2+ {[%clk 00:01:23]} {[%emt 00:00:22]} 45. Kf1
{[%clk 00:06:24]} {[%emt 00:00:03]} Kf6 {[%clk 00:01:25]} {[%emt 00:00:07]} 46.
Rxa5 {[%clk 00:06:30]} {[%emt 00:00:04]} Nf5 {[%clk 00:01:33]} {[%emt
00:00:02]} 47. Ke1 {[%clk 00:06:25]} {[%emt 00:00:15]} Rb2 {[%clk 00:01:27]}
{[%emt 00:00:17]} 48. Bd7 {[%clk 00:06:31]} {[%emt 00:00:05]} Nxg3 {[%clk
00:01:31]} {[%emt 00:00:06]} 49. Bxg4 {[%clk 00:06:36]} {[%emt 00:00:04]} Ra2
{[%clk 00:01:07]} {[%emt 00:00:34]} 50. Kd1 {[%clk 00:06:35]} {[%emt 00:00:12]}
Ne4 {[%clk 00:01:06]} {[%emt 00:00:10]} 51. Rf5+ {[%clk 00:06:43]} {[%emt
00:00:02]} Kg6 {[%clk 00:00:56]} {[%emt 00:00:19]} 52. Rf4 {[%clk 00:06:08]}
{[%emt 00:00:46]} Nc3+ {[%clk 00:00:50]} {[%emt 00:00:16]} 53. Kc1 {[%clk
00:06:17]} {[%emt 00:00:01]} Rxa4 {[%clk 00:00:54]} {[%emt 00:00:06]} 54. Rxa4
{[%clk 00:06:25]} {[%emt 00:00:02]} Nxa4 {[%clk 00:01:03]} 1/2-1/2

[Event "Snabb-SM för veteraner, 50+ 2019"]
[Site "Schackcentrum, Vegagatan 20, Gothenburg, Sweden"]
[Date "2019.10.06"]
[Round "7.9"]
[White "Sigeman, Johan"]
[Black "Ansner, Bjorn"]
[Result "1-0"]
[TimeControl "15 minutes + 10 seconds per move from move one"]
[WhiteFideId "1705601"]
[BlackFideId "1702769"]
[WhiteElo "2100"]
[BlackElo "1934"]

1. c4 {[%clk 00:15:17]} {[%emt 00:00:02]} Nf6 {[%clk 00:15:11]} {[%emt
00:00:09]} 2. Nc3 {[%clk 00:15:24]} {[%emt 00:00:03]} d5 {[%clk 00:15:02]}
{[%emt 00:00:18]} 3. cxd5 {[%clk 00:15:22]} {[%emt 00:00:12]} Nxd5 {[%clk
00:15:07]} {[%emt 00:00:06]} 4. d4 {[%clk 00:14:45]} {[%emt 00:00:47]} g6
{[%clk 00:14:53]} {[%emt 00:00:23]} 5. Nf3 {[%clk 00:13:57]} {[%emt 00:00:58]}
Bg7 {[%clk 00:14:51]} {[%emt 00:00:12]} 6. e4 {[%clk 00:14:01]} {[%emt
00:00:07]} Nb6 {[%clk 00:14:30]} {[%emt 00:00:31]} 7. h3 {[%clk 00:14:00]}
{[%emt 00:00:11]} O-O {[%clk 00:14:22]} {[%emt 00:00:18]} 8. Be2 {[%clk
00:14:02]} {[%emt 00:00:08]} Nc6 {[%clk 00:14:02]} {[%emt 00:00:31]} 9. Be3
{[%clk 00:13:33]} {[%emt 00:00:38]} Na5 {[%clk 00:12:49]} {[%emt 00:01:23]} 10.
O-O {[%clk 00:12:38]} {[%emt 00:01:04]} Nac4 {[%clk 00:10:08]} {[%emt
00:02:52]} 11. Bc1 {[%clk 00:11:42]} {[%emt 00:01:06]} c6 {[%clk 00:09:26]}
{[%emt 00:00:52]} 12. b3 {[%clk 00:10:15]} {[%emt 00:01:38]} Nd6 {[%clk
00:08:32]} {[%emt 00:01:04]} 13. Bb2 {[%clk 00:10:13]} {[%emt 00:00:13]} a5
{[%clk 00:08:02]} {[%emt 00:00:39]} 14. a4 {[%clk 00:09:24]} {[%emt 00:00:59]}
f5 {[%clk 00:05:39]} {[%emt 00:02:33]} 15. e5 {[%clk 00:06:08]} {[%emt
00:03:26]} Nf7 {[%clk 00:05:21]} {[%emt 00:00:27]} 16. Qc2 {[%clk 00:05:35]}
{[%emt 00:00:44]} Be6 {[%clk 00:05:09]} {[%emt 00:00:22]} 17. Rfd1 {[%clk
00:05:09]} {[%emt 00:00:36]} Bh6 {[%clk 00:03:57]} {[%emt 00:01:13]} 18. Bc1
{[%clk 00:04:55]} {[%emt 00:00:24]} Bxc1 {[%clk 00:03:44]} {[%emt 00:00:31]} 19.
Raxc1 {[%clk 00:05:04]} {[%emt 00:00:02]} Nd5 {[%clk 00:03:35]} {[%emt
00:00:20]} 20. Nxd5 {[%clk 00:04:59]} {[%emt 00:00:14]} Bxd5 {[%clk 00:03:48]}
{[%emt 00:00:08]} 21. Ne1 {[%clk 00:04:43]} {[%emt 00:00:35]} Qb6 {[%clk
00:04:01]} {[%emt 00:00:09]} 22. Bc4 {[%clk 00:04:50]} {[%emt 00:00:11]} Rad8
{[%clk 00:04:02]} {[%emt 00:00:10]} 23. Qc3 {[%clk 00:04:24]} {[%emt 00:00:36]}
Ng5 {[%clk 00:03:48]} {[%emt 00:00:23]} 24. Nc2 {[%clk 00:04:03]} {[%emt
00:00:32]} Ne4 {[%clk 00:03:19]} {[%emt 00:00:39]} 25. Qe3 {[%clk 00:04:04]}
{[%emt 00:00:09]} f4 {[%clk 00:03:24]} {[%emt 00:00:05]} 26. Qxe4 {[%clk
00:04:04]} {[%emt 00:00:10]} 1-0

[Event "Snabb-SM för veteraner, 50+ 2019"]
[Site "Schackcentrum, Vegagatan 20, Gothenburg, Sweden"]
[Date "2019.10.06"]
[Round "7.10"]
[White "Frisk, Hans"]
[Black "Andersson, Christer"]
[Result "1/2-1/2"]
[TimeControl "15 minutes + 10 seconds per move from move one"]
[WhiteFideId "1708570"]
[BlackFideId "1734857"]
[WhiteElo "1948"]
[BlackElo "1678"]

1. Nf3 {[%clk 00:15:17]} {[%emt 00:00:02]} Nf6 {[%clk 00:15:18]} {[%emt
00:00:02]} 2. c4 {[%clk 00:15:22]} {[%emt 00:00:05]} e6 {[%clk 00:15:25]}
{[%emt 00:00:02]} 3. g3 {[%clk 00:15:23]} {[%emt 00:00:10]} d5 {[%clk
00:15:34]} {[%emt 00:00:02]} 4. Bg2 {[%clk 00:15:31]} {[%emt 00:00:01]} dxc4
{[%clk 00:15:42]} {[%emt 00:00:02]} 5. O-O {[%clk 00:15:06]} {[%emt 00:00:35]}
a6 {[%clk 00:15:50]} {[%emt 00:00:03]} 6. a4 {[%clk 00:13:15]} {[%emt
00:02:01]} Nbd7 {[%clk 00:14:00]} {[%emt 00:02:00]} 7. Qc2 {[%clk 00:12:44]}
{[%emt 00:00:40]} Rb8 {[%clk 00:13:49]} {[%emt 00:00:22]} 8. Qxc4 {[%clk
00:12:38]} {[%emt 00:00:15]} b5 {[%clk 00:13:42]} {[%emt 00:00:17]} 9. axb5
{[%clk 00:11:32]} {[%emt 00:01:16]} axb5 {[%clk 00:13:49]} {[%emt 00:00:02]} 10.
Qc2 {[%clk 00:11:15]} {[%emt 00:00:28]} Bb7 {[%clk 00:12:39]} {[%emt 00:01:20]}
11. Na3 {[%clk 00:09:53]} {[%emt 00:01:32]} Bxa3 {[%clk 00:11:15]} {[%emt
00:01:34]} 12. Rxa3 {[%clk 00:09:43]} {[%emt 00:00:21]} c5 {[%clk 00:10:46]}
{[%emt 00:00:38]} 13. d3 {[%clk 00:08:58]} {[%emt 00:00:55]} Rc8 {[%clk
00:05:58]} {[%emt 00:04:58]} 14. Bf4 {[%clk 00:08:02]} {[%emt 00:01:05]} Qb6
{[%clk 00:02:42]} {[%emt 00:03:26]} 15. Rfa1 {[%clk 00:06:51]} {[%emt
00:01:21]} O-O {[%clk 00:02:32]} {[%emt 00:00:20]} 16. h3 {[%clk 00:05:20]}
{[%emt 00:01:41]} Rfe8 {[%clk 00:02:04]} {[%emt 00:00:38]} 17. Ne5 {[%clk
00:04:34]} {[%emt 00:00:56]} Nxe5 {[%clk 00:01:26]} {[%emt 00:00:48]} 18. Bxe5
{[%clk 00:04:40]} {[%emt 00:00:03]} Nd5 {[%clk 00:01:32]} {[%emt 00:00:04]} 19.
Qd2 {[%clk 00:03:01]} {[%emt 00:01:49]} f6 {[%clk 00:01:22]} {[%emt 00:00:21]}
20. Bf4 {[%clk 00:02:38]} {[%emt 00:00:32]} Ra8 {[%clk 00:01:20]} {[%emt
00:00:13]} 21. Rxa8 {[%clk 00:02:35]} {[%emt 00:00:13]} Rxa8 {[%clk 00:01:30]}
{[%emt 00:00:01]} 22. Rxa8+ Bxa8 {[%clk 00:01:39]} 23. Bxd5 {[%clk 00:01:45]}
{[%emt 00:01:00]} Bxd5 {[%clk 00:01:26]} {[%emt 00:00:23]} 24. e4 {[%clk
00:01:53]} {[%emt 00:00:02]} Bb7 {[%clk 00:01:17]} {[%emt 00:00:18]} 25. Be3
{[%clk 00:01:59]} {[%emt 00:00:05]} Qc7 {[%clk 00:01:08]} {[%emt 00:00:20]} 26.
Qc3 {[%clk 00:01:49]} {[%emt 00:00:19]} c4 {[%clk 00:01:16]} {[%emt 00:00:03]}
27. b3 {[%clk 00:01:19]} {[%emt 00:00:39]} Qc6 {[%clk 00:01:14]} {[%emt
00:00:13]} 28. bxc4 {[%clk 00:01:18]} {[%emt 00:00:09]} bxc4 {[%clk 00:01:21]}
{[%emt 00:00:04]} 29. Qxc4 {[%clk 00:01:05]} {[%emt 00:00:23]} Qxc4 {[%clk
00:01:30]} {[%emt 00:00:01]} 30. dxc4 {[%clk 00:01:14]} {[%emt 00:00:02]} Bxe4
{[%clk 00:01:39]} 1/2-1/2

[Event "Snabb-SM för veteraner, 50+ 2019"]
[Site "Schackcentrum, Vegagatan 20, Gothenburg, Sweden"]
[Date "2019.10.06"]
[Round "7.11"]
[White "Andersson, Kjell-Ake"]
[Black "Jacobsson, Lennart"]
[Result "1-0"]
[TimeControl "15 minutes + 10 seconds per move from move one"]
[WhiteFideId "1713825"]
[BlackFideId "1753320"]
[WhiteElo "1854"]
[BlackElo "1833"]

1. d4 {[%clk 00:15:08]} {[%emt 00:00:10]} Nf6 {[%clk 00:15:14]} {[%emt
00:00:07]} 2. c4 {[%clk 00:15:15]} {[%emt 00:00:02]} c5 {[%clk 00:15:21]}
{[%emt 00:00:04]} 3. Nf3 {[%clk 00:15:10]} {[%emt 00:00:16]} cxd4 {[%clk
00:15:25]} {[%emt 00:00:06]} 4. Nxd4 {[%clk 00:15:17]} {[%emt 00:00:02]} e5
{[%clk 00:15:26]} {[%emt 00:00:10]} 5. Nb5 {[%clk 00:15:23]} {[%emt 00:00:04]}
Bc5 {[%clk 00:15:28]} {[%emt 00:00:07]} 6. Nd6+ {[%clk 00:14:46]} {[%emt
00:00:48]} Ke7 {[%clk 00:15:35]} {[%emt 00:00:02]} 7. Nf5+ {[%clk 00:14:16]}
{[%emt 00:00:40]} Kf8 {[%clk 00:15:42]} {[%emt 00:00:04]} 8. e3 {[%clk
00:13:45]} {[%emt 00:00:39]} d5 {[%clk 00:14:48]} {[%emt 00:01:05]} 9. Ng3
{[%clk 00:13:46]} {[%emt 00:00:09]} Be6 {[%clk 00:12:42]} {[%emt 00:02:16]} 10.
Be2 {[%clk 00:12:51]} {[%emt 00:01:04]} Nc6 {[%clk 00:12:25]} {[%emt 00:00:29]}
11. cxd5 {[%clk 00:12:56]} {[%emt 00:00:05]} Bxd5 {[%clk 00:09:40]} {[%emt
00:02:56]} 12. O-O {[%clk 00:12:35]} {[%emt 00:00:29]} Qe7 {[%clk 00:08:25]}
{[%emt 00:01:26]} 13. Nc3 {[%clk 00:11:51]} {[%emt 00:00:55]} Be6 {[%clk
00:08:28]} {[%emt 00:00:05]} 14. a3 {[%clk 00:11:26]} {[%emt 00:00:35]} g6
{[%clk 00:07:37]} {[%emt 00:01:02]} 15. b4 {[%clk 00:11:02]} {[%emt 00:00:35]}
Bb6 {[%clk 00:07:37]} {[%emt 00:00:10]} 16. Bb2 {[%clk 00:10:34]} {[%emt
00:00:37]} Kg7 {[%clk 00:06:13]} {[%emt 00:01:34]} 17. Na4 {[%clk 00:09:51]}
{[%emt 00:00:52]} Rad8 {[%clk 00:05:15]} {[%emt 00:01:08]} 18. Qc2 {[%clk
00:08:33]} {[%emt 00:01:26]} Bc7 {[%clk 00:04:44]} {[%emt 00:00:43]} 19. Rac1
{[%clk 00:07:10]} {[%emt 00:01:32]} Bb8 {[%clk 00:04:40]} {[%emt 00:00:16]} 20.
f4 {[%clk 00:06:22]} {[%emt 00:00:57]} exf4 {[%clk 00:04:34]} {[%emt 00:00:16]}
21. Ne4 {[%clk 00:06:30]} {[%emt 00:00:03]} Bf5 {[%clk 00:03:04]} {[%emt
00:01:40]} 22. Bxf6+ {[%clk 00:04:24]} {[%emt 00:02:15]} Qxf6 {[%clk 00:03:09]}
{[%emt 00:00:05]} 23. Nxf6 {[%clk 00:04:05]} {[%emt 00:00:29]} Bxc2 {[%clk
00:03:17]} {[%emt 00:00:02]} 24. Rxc2 {[%clk 00:04:14]} Kxf6 {[%clk 00:03:25]}
{[%emt 00:00:02]} 25. Nc5 {[%clk 00:04:04]} {[%emt 00:00:20]} Kg7 {[%clk
00:03:01]} {[%emt 00:00:33]} 26. Nxb7 {[%clk 00:04:05]} {[%emt 00:00:10]} Rc8
{[%clk 00:03:02]} {[%emt 00:00:10]} 27. exf4 {[%clk 00:03:33]} {[%emt
00:00:41]} Nd4 {[%clk 00:02:32]} {[%emt 00:00:39]} 28. Rb2 {[%clk 00:02:58]}
{[%emt 00:00:44]} Rhe8 {[%clk 00:02:34]} {[%emt 00:00:10]} 29. Ba6 {[%clk
00:02:38]} {[%emt 00:00:29]} Rc3 {[%clk 00:02:36]} {[%emt 00:00:10]} 30. a4
{[%clk 00:02:28]} {[%emt 00:00:20]} Ne2+ {[%clk 00:02:35]} {[%emt 00:00:10]} 31.
Bxe2 {[%clk 00:02:35]} {[%emt 00:00:04]} Rce3 {[%clk 00:02:29]} {[%emt
00:00:16]} 32. Bb5 {[%clk 00:02:29]} {[%emt 00:00:17]} R3e4 {[%clk 00:02:24]}
{[%emt 00:00:14]} 33. Bxe8 {[%clk 00:02:35]} {[%emt 00:00:04]} Rxe8 {[%clk
00:02:33]} 34. Nc5 {[%clk 00:02:42]} {[%emt 00:00:04]} 1-0

[Event "Snabb-SM för veteraner, 50+ 2019"]
[Site "Schackcentrum, Vegagatan 20, Gothenburg, Sweden"]
[Date "2019.10.06"]
[Round "8.1"]
[White "Andersson, Johan"]
[Black "Svenn, Gosta"]
[Result "0-1"]
[TimeControl "15 minutes + 10 seconds per move from move one"]
[BlackTitle "FM"]
[WhiteFideId "1703935"]
[BlackFideId "1700553"]
[WhiteElo "2152"]
[BlackElo "2272"]

1. e4 {[%clk 00:15:15]} {[%emt 00:00:04]} c5 {[%clk 00:15:06]} {[%emt
00:00:15]} 2. Nf3 {[%clk 00:15:22]} {[%emt 00:00:03]} e6 {[%clk 00:15:11]}
{[%emt 00:00:05]} 3. g3 {[%clk 00:15:29]} {[%emt 00:00:04]} Nc6 {[%clk
00:15:05]} {[%emt 00:00:16]} 4. Bg2 {[%clk 00:15:35]} {[%emt 00:00:03]} Nf6
{[%clk 00:14:35]} {[%emt 00:00:40]} 5. Qe2 {[%clk 00:15:42]} {[%emt 00:00:03]}
d6 {[%clk 00:12:47]} {[%emt 00:01:58]} 6. O-O {[%clk 00:15:47]} {[%emt
00:00:05]} Be7 {[%clk 00:12:54]} {[%emt 00:00:03]} 7. c3 {[%clk 00:15:47]}
{[%emt 00:00:10]} e5 {[%clk 00:12:30]} {[%emt 00:00:34]} 8. Rd1 {[%clk
00:15:26]} {[%emt 00:00:30]} O-O {[%clk 00:12:07]} {[%emt 00:00:33]} 9. d4
{[%clk 00:14:43]} {[%emt 00:00:53]} cxd4 {[%clk 00:08:33]} {[%emt 00:03:45]} 10.
cxd4 {[%clk 00:14:49]} {[%emt 00:00:04]} Bg4 {[%clk 00:08:34]} {[%emt
00:00:08]} 11. dxe5 {[%clk 00:13:36]} {[%emt 00:01:23]} Nxe5 {[%clk 00:08:40]}
{[%emt 00:00:04]} 12. Bf4 {[%clk 00:11:51]} {[%emt 00:01:55]} Qb6 {[%clk
00:07:56]} {[%emt 00:00:55]} 13. Nc3 {[%clk 00:10:44]} {[%emt 00:01:17]} Rfe8
{[%clk 00:07:29]} {[%emt 00:00:36]} 14. b3 {[%clk 00:09:04]} {[%emt 00:01:51]}
Rac8 {[%clk 00:06:40]} {[%emt 00:00:59]} 15. Rac1 {[%clk 00:08:36]} {[%emt
00:00:38]} Qa5 {[%clk 00:04:05]} {[%emt 00:02:45]} 16. Bd2 {[%clk 00:04:47]}
{[%emt 00:03:59]} Qa3 {[%clk 00:04:00]} {[%emt 00:00:16]} 17. Rc2 {[%clk
00:03:38]} {[%emt 00:01:19]} d5 {[%clk 00:02:35]} {[%emt 00:01:35]} 18. Rdc1
{[%clk 00:02:00]} {[%emt 00:01:47]} dxe4 {[%clk 00:01:08]} {[%emt 00:01:37]} 19.
Nxe4 {[%clk 00:01:54]} {[%emt 00:00:16]} Rxc2 {[%clk 00:00:56]} {[%emt
00:00:22]} 20. Rxc2 {[%clk 00:01:59]} {[%emt 00:00:05]} Nd5 {[%clk 00:00:34]}
{[%emt 00:00:32]} 21. h3 {[%clk 00:01:46]} {[%emt 00:00:24]} Bh5 {[%clk
00:00:26]} {[%emt 00:00:19]} 22. g4 {[%clk 00:01:42]} {[%emt 00:00:13]} Nxf3+
{[%clk 00:00:34]} {[%emt 00:00:02]} 23. Qxf3 {[%clk 00:01:46]} {[%emt
00:00:07]} Bg6 {[%clk 00:00:42]} {[%emt 00:00:02]} 24. Rc4 {[%clk 00:01:20]}
{[%emt 00:00:35]} Qb2 {[%clk 00:00:44]} {[%emt 00:00:08]} 25. Bc1 {[%clk
00:01:00]} {[%emt 00:00:30]} Qxa2 {[%clk 00:00:37]} {[%emt 00:00:17]} 26. Nc5
{[%clk 00:00:28]} {[%emt 00:00:42]} b5 {[%clk 00:00:30]} {[%emt 00:00:17]} 27.
Qxd5 {[%clk 00:00:14]} {[%emt 00:00:24]} bxc4 {[%clk 00:00:38]} {[%emt
00:00:02]} 28. Qd7 {[%clk 00:00:21]} {[%emt 00:00:03]} f6 {[%clk 00:00:26]}
{[%emt 00:00:22]} 29. Bd5+ {[%clk 00:00:26]} {[%emt 00:00:05]} Kh8 {[%clk
00:00:35]} 30. Ne6 {[%clk 00:00:23]} {[%emt 00:00:14]} Qb1 {[%clk 00:00:28]}
{[%emt 00:00:17]} 31. Nc7 {[%clk 00:00:20]} {[%emt 00:00:13]} Qxc1+ {[%clk
00:00:36]} {[%emt 00:00:02]} 32. Kg2 {[%clk 00:00:29]} Rb8 {[%clk 00:00:18]}
{[%emt 00:00:28]} 33. Qxe7 {[%clk 00:00:34]} {[%emt 00:00:05]} Qc2 {[%clk
00:00:21]} {[%emt 00:00:08]} 34. bxc4 {[%clk 00:00:36]} {[%emt 00:00:09]} h6
{[%clk 00:00:21]} {[%emt 00:00:10]} 35. Ne6 {[%clk 00:00:39]} {[%emt 00:00:07]}
Be4+ {[%clk 00:00:30]} {[%emt 00:00:01]} 36. Kg3 {[%clk 00:00:44]} {[%emt
00:00:04]} Rb3+ {[%clk 00:00:33]} {[%emt 00:00:08]} 37. Kf4 {[%clk 00:00:37]}
{[%emt 00:00:16]} g5+ {[%clk 00:00:26]} {[%emt 00:00:18]} 38. Nxg5 {[%clk
00:00:40]} {[%emt 00:00:07]} hxg5# {[%clk 00:00:34]} {[%emt 00:00:02]} 0-1

[Event "Snabb-SM för veteraner, 50+ 2019"]
[Site "Schackcentrum, Vegagatan 20, Gothenburg, Sweden"]
[Date "2019.10.06"]
[Round "8.2"]
[White "Naslund, Mikael"]
[Black "Angskog, Kent"]
[Result "0-1"]
[TimeControl "15 minutes + 10 seconds per move from move one"]
[WhiteTitle "FM"]
[WhiteFideId "1708260"]
[BlackFideId "1703668"]
[WhiteElo "2076"]
[BlackElo "2136"]

1. d4 {[%clk 00:15:19]} {[%emt 00:00:01]} d6 {[%clk 00:15:18]} {[%emt
00:00:02]} 2. Nf3 {[%clk 00:15:18]} {[%emt 00:00:11]} Nf6 {[%clk 00:15:20]}
{[%emt 00:00:07]} 3. c4 {[%clk 00:15:12]} {[%emt 00:00:17]} Bg4 {[%clk
00:15:20]} {[%emt 00:00:09]} 4. e3 {[%clk 00:14:58]} {[%emt 00:00:25]} Nc6
{[%clk 00:14:54]} {[%emt 00:00:35]} 5. d5 {[%clk 00:14:09]} {[%emt 00:00:59]}
Ne5 {[%clk 00:15:00]} {[%emt 00:00:03]} 6. Be2 {[%clk 00:14:09]} {[%emt
00:00:12]} Bxf3 {[%clk 00:14:39]} {[%emt 00:00:30]} 7. Bxf3 {[%clk 00:14:11]}
{[%emt 00:00:08]} g6 {[%clk 00:14:35]} {[%emt 00:00:15]} 8. Be2 {[%clk
00:14:10]} {[%emt 00:00:11]} Bg7 {[%clk 00:14:40]} {[%emt 00:00:03]} 9. Nc3
{[%clk 00:14:01]} {[%emt 00:00:20]} O-O {[%clk 00:14:34]} {[%emt 00:00:16]} 10.
O-O {[%clk 00:14:07]} {[%emt 00:00:04]} c6 {[%clk 00:14:36]} {[%emt 00:00:08]}
11. f4 {[%clk 00:13:06]} {[%emt 00:01:12]} Ned7 {[%clk 00:14:41]} {[%emt
00:00:05]} 12. Kh1 {[%clk 00:12:18]} {[%emt 00:00:58]} cxd5 {[%clk 00:13:08]}
{[%emt 00:01:43]} 13. cxd5 {[%clk 00:12:01]} {[%emt 00:00:27]} Rc8 {[%clk
00:13:06]} {[%emt 00:00:12]} 14. e4 {[%clk 00:11:04]} {[%emt 00:01:07]} Rxc3
{[%clk 00:09:28]} {[%emt 00:03:48]} 15. bxc3 {[%clk 00:11:12]} {[%emt
00:00:02]} Nxe4 {[%clk 00:09:30]} {[%emt 00:00:08]} 16. Bf3 {[%clk 00:09:07]}
{[%emt 00:02:16]} Nxc3 {[%clk 00:09:16]} {[%emt 00:00:24]} 17. Qe1 {[%clk
00:08:44]} {[%emt 00:00:32]} b5 {[%clk 00:06:03]} {[%emt 00:03:23]} 18. Bd2
{[%clk 00:06:32]} {[%emt 00:02:23]} b4 {[%clk 00:05:01]} {[%emt 00:01:11]} 19.
a3 {[%clk 00:06:39]} {[%emt 00:00:04]} Nb5 {[%clk 00:02:54]} {[%emt 00:02:17]}
20. axb4 {[%clk 00:05:49]} {[%emt 00:01:01]} Bxa1 {[%clk 00:03:00]} {[%emt
00:00:04]} 21. Qxa1 {[%clk 00:05:57]} {[%emt 00:00:02]} Qb6 {[%clk 00:02:48]}
{[%emt 00:00:22]} 22. Re1 {[%clk 00:05:31]} {[%emt 00:00:36]} Re8 {[%clk
00:02:16]} {[%emt 00:00:43]} 23. Be3 {[%clk 00:04:56]} {[%emt 00:00:45]} Qb7
{[%clk 00:02:12]} {[%emt 00:00:13]} 24. f5 {[%clk 00:02:28]} {[%emt 00:02:39]}
Ne5 {[%clk 00:01:58]} {[%emt 00:00:24]} 25. Bh6 {[%clk 00:02:21]} {[%emt
00:00:17]} f6 {[%clk 00:01:34]} {[%emt 00:00:34]} 26. fxg6 {[%clk 00:02:18]}
{[%emt 00:00:13]} Nxf3 {[%clk 00:00:59]} {[%emt 00:00:45]} 27. gxh7+ {[%clk
00:01:02]} {[%emt 00:01:27]} Kxh7 {[%clk 00:00:49]} {[%emt 00:00:20]} 28. Qb1+
{[%clk 00:00:40]} {[%emt 00:00:32]} Kxh6 {[%clk 00:00:51]} {[%emt 00:00:08]} 29.
gxf3 {[%clk 00:00:46]} {[%emt 00:00:05]} Qxd5 {[%clk 00:00:47]} {[%emt
00:00:14]} 30. Qc1+ {[%clk 00:00:33]} {[%emt 00:00:23]} Qg5 {[%clk 00:00:44]}
{[%emt 00:00:12]} 31. f4 {[%clk 00:00:40]} {[%emt 00:00:03]} Qd5+ {[%clk
00:00:51]} {[%emt 00:00:03]} 0-1